[Event "African Games-chT 2019"]
[Site "Casablanca"]
[Date "2019.08.25"]
[Round "7.16"]
[White "Miladi, Amen"]
[Black "Eshete, Ruth Leykun"]
[Result "1/2-1/2"]
[ECO "C54"]
[WhiteElo "1811"]
[BlackElo "1495"]
[Annotator "NA"]
[PlyCount "89"]
[EventDate "2019.08.24"]
[EventType "team-tourn"]
[EventCountry "MAR"]
[SourceTitle "playchess.com"]
[Source "ChessBase"]
[SourceQuality "1"]
[WhiteTeam "Tunisia"]
[BlackTeam "Ethiopia"]
[WhiteTeamCountry "TUN"]
[BlackTeamCountry "ETH"]
[TimeControl "900+10"]

1. e4 {[%emt 0:00:00]} e5 {[%emt 0:00:00]} 2. Nf3 {[%emt 0:00:00]} Nc6 {[%emt 0:00:00]} 3. Bc4 {[%emt 0:00:00]} Bc5 {[%emt 0:00:21]} 4. c3 {[%emt 0:00:00]} Nf6 {[%emt 0:00:07]} 5. d3 {[%emt 0:00:00]} O-O {[%emt 0:00:16]} 6. Nbd2 {[%emt 0:00:00]} d6 {[%emt 0:00:13]} 7. Bb3 {[%emt 0:00:01]} a6 {[%emt 0:00:24]} 8. Nf1 {[%emt 0:00:02]} Bg4 {[%emt 0:00:30]} 9. Ng3 {[%emt 0:00:03]} h6 {[%emt 0:00:16]} 10. O-O {[%emt 0:00:09]} Na5 {[%emt 0:00:33]} 11. Bc2 {[%emt 0:00:03]} Nc6 {[%emt 0:00:06]} 12. h3 {[%emt 0:00:01]} Bd7 {[%emt 0:00:48]} 13. Re1 {[%emt 0:00:26]} Ne7 {[%emt 0:00:26]} 14. Nh4 {[%emt 0:00:18]} Nh7 {[%emt 0:01:20]} 15. Qf3 {[%emt 0:00:40]} Nc6 {[%emt 0:01:02]} 16. Nhf5 {[%emt 0:00:11]} Ng5 {[%emt 0:00:52]} 17. Qg4 {[%emt 0:01:24]} Qf6 {[%emt 0:02:18]} 18. h4 {[%emt 0:01:57]} Nh7 {[%emt 0:01:14]} 19. Bxh6 {[%emt 0:00:32]} g6 {[%emt 0:02:39]} 20. Bb3 {[%emt 0:04:33]} Kh8 {[%emt 0:00:47]} 21. Bxf8 {[%emt 0:02:55]} Rxf8 {[%emt 0:00:41]} 22. h5 {[%emt 0:02:33]} gxf5 {[%emt 0:00:21]} 23. Nxf5 {[%emt 0:00:45]} Ne7 {[%emt 0:01:03]} 24. Qh4 {[%emt 0:00:48]} Nxf5 {[%emt 0:00:50]} 25. Qxf6+ {[%emt 0:00:01]} Nxf6 {[%emt 0:00:01]} 26. exf5 {[%emt 0:00:02]} Bxf5 {[%emt 0:00:21]} 27. d4 {[%emt 0:00:26]} exd4 {[%emt 0:00:17]} 28. cxd4 {[%emt 0:00:01]} Bxd4 {[%emt 0:00:20]} 29. Rac1 {[%emt 0:00:01]} Bb6 {[%emt 0:00:22]} 30. Re7 {[%emt 0:00:22]} Nxh5 {[%emt 0:00:28]} 31. Bxf7 {[%emt 0:00:14]} Ng7 {[%emt 0:00:31]} 32. g3 {[%emt 0:00:29]} Kh7 {[%emt 0:00:08]} 33. Kg2 {[%emt 0:00:02]} Bg6 {[%emt 0:00:04]} 34. Rh1+ {[%emt 0:00:03]} Bh5 {[%emt 0:00:35]} 35. Bxh5 {[%emt 0:00:23]} Rxf2+ {[%emt 0:00:05]} 36. Kh3 {[%emt 0:00:00]} Kg8 {[%emt 0:00:20]} 37. Kg4 {[%emt 0:00:37]} Rxb2 {[%emt 0:00:12]} 38. Bg6 {[%emt 0:00:03]} Rb4+ {[%emt 0:00:18]} 39. Kg5 {[%emt 0:00:15]} Rb5+ {[%emt 0:00:05]} 40. Kh6 {[%emt 0:00:13]} Nf5+ {[%emt 0:00:08]} 41. Bxf5 {[%emt 0:00:04]} Rxf5 {[%emt 0:00:01]} 42. Kg6 {[%emt 0:00:05]} Kf8 {[%emt 0:00:13]} 43. Rd7 {[%emt 0:00:28]} Ke8 {[%emt 0:00:15]} 44. Rhh7 {[%emt 0:00:04]} Rf3 45. Kg5 1/2-1/2

[Event "African Games-chT 2019"]
[Site "Casablanca"]
[Date "2019.08.25"]
[Round "7.17"]
[White "Rita, Jeorciley"]
[Black "Chumfwa, Stanley"]
[Result "1/2-1/2"]
[ECO "A48"]
[WhiteElo "1920"]
[BlackElo "2317"]
[Annotator "ChessBase"]
[PlyCount "96"]
[EventDate "2019.08.24"]
[EventType "team-tourn"]
[EventCountry "MAR"]
[SourceTitle "playchess.com"]
[Source "ChessBase"]
[SourceQuality "1"]
[WhiteTeam "STP"]
[BlackTeam "Zambia"]
[BlackTeamCountry "ZAM"]
[TimeControl "900+10"]

1. d4 {[%emt 0:00:00]} Nf6 {[%emt 0:00:00]} 2. Nf3 {[%emt 0:00:00]} g6 {[%emt 0:00:00]} 3. Bg5 {[%emt 0:00:00]} Bg7 {[%emt 0:00:04]} 4. e3 {[%emt 0:00:00]} Ne4 {[%emt 0:00:31]} 5. Bh4 {[%emt 0:00:13]} O-O {[%emt 0:00:03]} 6. Bd3 {[%emt 0:00:11]} d5 {[%emt 0:00:09]} 7. Nbd2 {[%emt 0:00:19]} Bf5 {[%emt 0:00:15]} 8. h3 {[%emt 0:00:14]} c5 {[%emt 0:00:13]} 9. g4 {[%emt 0:01:10]} Nxd2 {[%emt 0:00:12]} 10. Qxd2 {[%emt 0:02:21]} Bxd3 {[%emt 0:00:32]} 11. Qxd3 {[%emt 0:00:13]} Nc6 {[%emt 0:00:05]} 12. c3 {[%emt 0:00:06]} cxd4 {[%emt 0:00:15]} 13. exd4 {[%emt 0:00:12]} Qb6 {[%emt 0:03:05]} 14. O-O {[%emt 0:00:47]} Rac8 {[%emt 0:00:19]} 15. Rab1 {[%emt 0:02:44]} Rfe8 {[%emt 0:00:04]} 16. Rfe1 {[%emt 0:00:33]} Qa5 {[%emt 0:00:42]} 17. a3 {[%emt 0:01:31]} b5 {[%emt 0:00:15]} 18. Nd2 Qb6 {[%emt 0:00:15]} 19. Nf3 {[%emt 0:01:03]} a5 {[%emt 0:00:12]} 20. Ne5 {[%emt 0:00:52]} Nxe5 {[%emt 0:00:22]} 21. dxe5 {[%emt 0:00:02]} e6 {[%emt 0:00:01]} 22. Rbc1 {[%emt 0:01:08]} Rc4 {[%emt 0:00:42]} 23. Kg2 {[%emt 0:00:41]} Rec8 {[%emt 0:00:58]} 24. Qe3 {[%emt 0:00:42]} Qc6 {[%emt 0:01:16]} 25. f3 {[%emt 0:03:08]} d4 {[%emt 0:00:21]} 26. Qd3 {[%emt 0:00:27]} dxc3 {[%emt 0:00:09]} 27. Rxc3 {[%emt 0:00:13]} Rxc3 {[%emt 0:00:04]} 28. bxc3 {[%emt 0:00:02]} Qxc3 {[%emt 0:00:46]} 29. Qxb5 {[%emt 0:00:03]} Qxa3 {[%emt 0:00:04]} 30. Re2 {[%emt 0:00:15]} Qc5 {[%emt 0:00:42]} 31. Qxc5 {[%emt 0:00:22]} Rxc5 {[%emt 0:00:01]} 32. f4 {[%emt 0:00:01]} Bf8 {[%emt 0:00:24]} 33. Ra2 {[%emt 0:00:04]} Rd5 {[%emt 0:00:12]} 34. Be1 {[%emt 0:00:05]} Bb4 {[%emt 0:00:03]} 35. Bxb4 {[%emt 0:00:05]} axb4 {[%emt 0:00:00]} 36. Rb2 {[%emt 0:00:07]} Rd4 {[%emt 0:00:08]} 37. Kf3 {[%emt 0:00:02]} Kf8 {[%emt 0:00:02]} 38. g5 {[%emt 0:00:51]} Ke7 {[%emt 0:00:11]} 39. Ke3 {[%emt 0:00:01]} Rc4 {[%emt 0:00:02]} 40. h4 {[%emt 0:00:04]} Kd7 {[%emt 0:01:09]} 41. Rd2+ {[%emt 0:00:37]} Kc7 {[%emt 0:00:03]} 42. Rd4 {[%emt 0:00:05]} Rxd4 {[%emt 0:00:27]} 43. Kxd4 Kc6 44. Kc4 {[%emt 0:00:05]} b3 {[%emt 0:00:01]} 45. Kxb3 Kd5 46. Kc3 {[%emt 0:00:34]} Ke4 {[%emt 0:00:02]} 47. Kc4 {[%emt 0:00:05]} Kxf4 {[%emt 0:00:01]} 48. Kd4 {[%emt 0:00:01]} Kf5 {[%emt 0:00:05]} 1/2-1/2

[Event "African Games-chT 2019"]
[Site "Casablanca"]
[Date "2019.08.25"]
[Round "7.18"]
[White "Kayonde, Andrew"]
[Black "Espirito Santo, Waldyr"]
[Result "1-0"]
[ECO "A45"]
[WhiteElo "2384"]
[BlackElo "1923"]
[Annotator "ChessBase"]
[PlyCount "76"]
[EventDate "2019.08.24"]
[EventType "team-tourn"]
[EventCountry "MAR"]
[SourceTitle "playchess.com"]
[Source "ChessBase"]
[SourceQuality "1"]
[WhiteTeam "Zambia"]
[BlackTeam "STP"]
[WhiteTeamCountry "ZAM"]
[TimeControl "900+10"]

1. d4 {[%emt 0:00:00]} Nf6 {[%emt 0:00:00]} 2. Bg5 {[%emt 0:00:00]} e6 {[%emt 0:00:04]} 3. e4 {[%emt 0:00:02]} Be7 {[%emt 0:00:09]} 4. e5 {[%emt 0:00:03]} Nd5 {[%emt 0:00:06]} 5. Bd2 {[%emt 0:00:04]} O-O {[%emt 0:00:16]} 6. c4 {[%emt 0:00:31]} Nb6 {[%emt 0:00:05]} 7. Nc3 {[%emt 0:00:36]} d5 {[%emt 0:00:40]} 8. c5 {[%emt 0:00:51]} N6d7 {[%emt 0:00:17]} 9. Nf3 {[%emt 0:00:44]} Nc6 {[%emt 0:00:27]} 10. Bb5 {[%emt 0:00:27]} f6 {[%emt 0:01:00]} 11. exf6 {[%emt 0:00:04]} Bxf6 {[%emt 0:00:16]} 12. Qa4 {[%emt 0:02:16]} Ndb8 {[%emt 0:00:58]} 13. O-O {[%emt 0:00:06]} Bd7 {[%emt 0:00:23]} 14. Rfe1 {[%emt 0:00:12]} a6 {[%emt 0:00:14]} 15. Ne2 {[%emt 0:01:09]} e5 {[%emt 0:01:35]} 16. Bxc6 {[%emt 0:00:31]} Bxc6 {[%emt 0:00:39]} 17. Qb3 {[%emt 0:00:02]} Nd7 {[%emt 0:01:52]} 18. dxe5 {[%emt 0:00:22]} Nxe5 {[%emt 0:00:33]} 19. Nxe5 {[%emt 0:00:06]} Bxe5 {[%emt 0:00:04]} 20. f4 {[%emt 0:01:56]} Bf6 {[%emt 0:00:44]} 21. Bc3 {[%emt 0:00:08]} Bxc3 {[%emt 0:00:49]} 22. Qxc3 {[%emt 0:00:04]} Qh4 {[%emt 0:00:35]} 23. g3 {[%emt 0:00:58]} Qg4 {[%emt 0:00:56]} 24. Nd4 {[%emt 0:00:04]} Rae8 {[%emt 0:00:13]} 25. Nxc6 {[%emt 0:00:41]} bxc6 {[%emt 0:00:15]} 26. Re5 {[%emt 0:00:50]} Qd7 {[%emt 0:01:30]} 27. Rae1 {[%emt 0:00:13]} Rxe5 {[%emt 0:00:13]} 28. Qxe5 {[%emt 0:00:03]} d4 {[%emt 0:00:44]} 29. Qe6+ {[%emt 0:00:07]} Qxe6 {[%emt 0:00:08]} 30. Rxe6 {[%emt 0:00:01]} Rd8 {[%emt 0:02:14]} 31. Kf2 {[%emt 0:00:03]} Kf7 {[%emt 0:00:16]} 32. Rxc6 {[%emt 0:00:03]} Re8 {[%emt 0:00:56]} 33. Rxc7+ {[%emt 0:00:19]} Ke6 {[%emt 0:00:15]} 34. Ke2 {[%emt 0:00:25]} Kd5+ {[%emt 0:00:03]} 35. Kd2 {[%emt 0:00:03]} Kc4 {[%emt 0:00:15]} 36. b3+ {[%emt 0:00:20]} Kd5 {[%emt 0:00:13]} 37. c6 {[%emt 0:00:05]} Kd6 {[%emt 0:00:50]} 38. Rxg7 {[%emt 0:00:14]} Kd5 1-0

[Event "African Games-chT 2019"]
[Site "Casablanca"]
[Date "2019.08.25"]
[Round "7.21"]
[White "Gohil, Mehul"]
[Black "Adu, Oladapo"]
[Result "0-1"]
[ECO "D11"]
[WhiteElo "2076"]
[BlackElo "2273"]
[Annotator "ChessBase"]
[PlyCount "96"]
[EventDate "2019.08.24"]
[EventType "team-tourn"]
[EventCountry "MAR"]
[SourceTitle "playchess.com"]
[Source "ChessBase"]
[SourceQuality "1"]
[WhiteTeam "Kenya"]
[BlackTeam "Nigeria"]
[WhiteTeamCountry "KEN"]
[BlackTeamCountry "NGR"]
[TimeControl "900+10"]

1. d4 {[%emt 0:00:00]} d5 {[%emt 0:00:54]} 2. c4 {[%emt 0:00:00]} c6 {[%emt 0:00:07]} 3. Nf3 {[%emt 0:00:04]} Nf6 {[%emt 0:00:03]} 4. e3 {[%emt 0:00:05]} a6 {[%emt 0:00:04]} 5. b3 {[%emt 0:00:10]} Bf5 {[%emt 0:00:11]} 6. Bb2 {[%emt 0:00:10]} e6 {[%emt 0:00:07]} 7. Be2 {[%emt 0:00:26]} Bxb1 {[%emt 0:00:31]} 8. Qxb1 {[%emt 0:02:21]} Bb4+ {[%emt 0:00:05]} 9. Kf1 {[%emt 0:00:05]} Ne4 {[%emt 0:00:07]} 10. a3 {[%emt 0:02:18]} Bd6 {[%emt 0:00:52]} 11. g3 {[%emt 0:00:10]} O-O {[%emt 0:00:07]} 12. Kg2 {[%emt 0:00:09]} f5 {[%emt 0:00:03]} 13. Ne5 {[%emt 0:00:56]} Nd7 {[%emt 0:00:26]} 14. f3 {[%emt 0:01:17]} Nef6 {[%emt 0:00:03]} 15. Re1 {[%emt 0:01:41]} Qc7 {[%emt 0:00:06]} 16. Nxd7 {[%emt 0:00:35]} Qxd7 {[%emt 0:00:14]} 17. Bd3 {[%emt 0:00:16]} g6 {[%emt 0:00:23]} 18. Qc2 {[%emt 0:00:23]} Rae8 {[%emt 0:00:09]} 19. Rad1 {[%emt 0:00:11]} Qe7 {[%emt 0:00:13]} 20. b4 {[%emt 0:00:18]} Nh5 {[%emt 0:00:17]} 21. Bc1 {[%emt 0:01:41]} Qc7 {[%emt 0:00:24]} 22. Kg1 {[%emt 0:01:46]} Qg7 {[%emt 0:00:16]} 23. Bf1 {[%emt 0:00:19]} Nf6 {[%emt 0:00:35]} 24. Bg2 {[%emt 0:00:03]} h5 {[%emt 0:00:38]} 25. Bb2 {[%emt 0:00:07]} h4 {[%emt 0:00:19]} 26. gxh4 {[%emt 0:00:46]} Qh6 {[%emt 0:01:33]} 27. e4 {[%emt 0:00:14]} Nh5 {[%emt 0:00:15]} 28. e5 {[%emt 0:00:08]} Be7 {[%emt 0:00:04]} 29. Bc1 {[%emt 0:01:04]} f4 {[%emt 0:00:10]} 30. Bf1 {[%emt 0:00:06]} Bxh4 {[%emt 0:00:12]} 31. Re2 {[%emt 0:00:02]} Kf7 {[%emt 0:04:06]} 32. Rg2 {[%emt 0:00:06]} Bd8 {[%emt 0:00:15]} 33. Bd3 {[%emt 0:00:12]} Rg8 {[%emt 0:00:25]} 34. Kf2 {[%emt 0:00:28]} Bb6 {[%emt 0:00:15]} 35. c5 {[%emt 0:00:01]} Bd8 {[%emt 0:00:01]} 36. Rdg1 {[%emt 0:00:02]} g5 {[%emt 0:00:05]} 37. Ke1 {[%emt 0:00:25]} Ref8 {[%emt 0:00:10]} 38. Kd1 {[%emt 0:00:07]} Ke8 {[%emt 0:00:09]} 39. a4 {[%emt 0:00:04]} Kd7 {[%emt 0:00:03]} 40. Bd2 {[%emt 0:00:43]} Be7 {[%emt 0:00:15]} 41. Be1 {[%emt 0:00:04]} Ng7 {[%emt 0:00:14]} 42. b5 {[%emt 0:00:18]} axb5 {[%emt 0:00:07]} 43. axb5 {[%emt 0:00:01]} Ra8 {[%emt 0:00:09]} 44. b6 {[%emt 0:00:04]} Ra1+ {[%emt 0:00:11]} 45. Ke2 {[%emt 0:00:10]} Rga8 {[%emt 0:00:02]} 46. Kf1 {[%emt 0:00:45]} Qh3 {[%emt 0:00:11]} 47. Be2 {[%emt 0:00:13]} Nf5 {[%emt 0:00:33]} 48. Kf2 {[%emt 0:00:01]} Qh4+ {[%emt 0:00:07]} 0-1

[Event "African Games-chT 2019"]
[Site "Casablanca"]
[Date "2019.08.25"]
[Round "7.22"]
[White "Osunfuyi, Abimbola"]
[Black "Sang, Ricky"]
[Result "1-0"]
[ECO "A20"]
[WhiteElo "2235"]
[BlackElo "1971"]
[Annotator "ChessBase"]
[PlyCount "39"]
[EventDate "2019.08.24"]
[EventType "team-tourn"]
[EventCountry "MAR"]
[SourceTitle "playchess.com"]
[Source "ChessBase"]
[SourceQuality "1"]
[WhiteTeam "Nigeria"]
[BlackTeam "Kenya"]
[WhiteTeamCountry "NGR"]
[BlackTeamCountry "KEN"]
[TimeControl "900+10"]

1. c4 {[%emt 0:00:00]} e5 {[%emt 0:00:00]} 2. g3 {[%emt 0:00:00]} Nf6 {[%emt 0:00:27]} 3. Bg2 {[%emt 0:00:00]} c6 {[%emt 0:00:06]} 4. Nf3 {[%emt 0:00:00]} d6 {[%emt 0:00:04]} 5. Nc3 {[%emt 0:00:15]} Bf5 {[%emt 0:00:23]} 6. d3 {[%emt 0:00:14]} Be7 {[%emt 0:00:08]} 7. Qb3 {[%emt 0:00:10]} Qb6 {[%emt 0:00:10]} 8. Be3 {[%emt 0:00:04]} Qc7 {[%emt 0:01:17]} 9. O-O {[%emt 0:00:10]} O-O {[%emt 0:00:07]} 10. h3 {[%emt 0:00:02]} Nbd7 11. d4 exd4 {[%emt 0:01:46]} 12. Bxd4 {[%emt 0:00:25]} h6 {[%emt 0:00:19]} 13. Rfe1 {[%emt 0:00:14]} Ne4 {[%emt 0:01:19]} 14. Nxe4 {[%emt 0:00:58]} Bxe4 {[%emt 0:00:14]} 15. Qe3 {[%emt 0:00:05]} Bxf3 {[%emt 0:01:33]} 16. exf3 {[%emt 0:00:56]} Bf6 {[%emt 0:00:37]} 17. Rad1 {[%emt 0:00:04]} Ne5 {[%emt 0:02:38]} 18. b3 {[%emt 0:00:14]} Rfe8 {[%emt 0:01:09]} 19. Qd2 {[%emt 0:01:17]} Be7 {[%emt 0:00:37]} 20. f4 {[%emt 0:00:05]} 1-0

[Event "African Games-chT 2019"]
[Site "Casablanca"]
[Date "2019.08.25"]
[Round "7.23"]
[White "Ndirangu, Joyce Nyaruai"]
[Black "Ogbiyoyo, Perpetual Eloho"]
[Result "1-0"]
[ECO "A80"]
[WhiteElo "1662"]
[BlackElo "1831"]
[Annotator "NA"]
[PlyCount "67"]
[EventDate "2019.08.24"]
[EventType "team-tourn"]
[EventCountry "MAR"]
[SourceTitle "playchess.com"]
[Source "ChessBase"]
[SourceQuality "1"]
[WhiteTeam "Kenya"]
[BlackTeam "Nigeria"]
[WhiteTeamCountry "KEN"]
[BlackTeamCountry "NGR"]
[TimeControl "900+10"]

1. d4 {[%emt 0:00:00]} f5 {[%emt 0:00:00]} 2. Bf4 {[%emt 0:00:00]} Nf6 {[%emt 0:00:00]} 3. e3 {[%emt 0:00:00]} g6 {[%emt 0:00:00]} 4. Be2 {[%emt 0:00:12]} Bg7 {[%emt 0:00:02]} 5. h3 {[%emt 0:00:08]} d6 {[%emt 0:00:04]} 6. Nf3 {[%emt 0:00:04]} e6 {[%emt 0:00:05]} 7. c4 {[%emt 0:00:17]} O-O {[%emt 0:00:07]} 8. Nc3 {[%emt 0:00:01]} h6 {[%emt 0:00:18]} 9. Qb3 {[%emt 0:01:30]} Kh7 {[%emt 0:02:01]} 10. c5 {[%emt 0:00:07]} d5 {[%emt 0:01:33]} 11. Nb5 {[%emt 0:03:51]} Na6 {[%emt 0:00:28]} 12. Na3 {[%emt 0:00:42]} Ne4 {[%emt 0:01:17]} 13. Bxa6 {[%emt 0:02:15]} bxa6 {[%emt 0:00:03]} 14. c6 {[%emt 0:00:03]} g5 {[%emt 0:01:59]} 15. Bh2 {[%emt 0:01:09]} g4 {[%emt 0:00:13]} 16. Nd2 {[%emt 0:00:49]} Qh4 {[%emt 0:01:37]} 17. Nxe4 {[%emt 0:00:02]} fxe4 {[%emt 0:00:02]} 18. Bg3 {[%emt 0:00:03]} Qg5 {[%emt 0:02:02]} 19. hxg4 {[%emt 0:00:08]} Qxg4 {[%emt 0:00:06]} 20. Rh4 {[%emt 0:00:14]} Qg5 21. O-O-O {[%emt 0:00:19]} Qg6 {[%emt 0:02:16]} 22. Rdh1 {[%emt 0:01:24]} Qe8 {[%emt 0:00:18]} 23. Qc2 {[%emt 0:00:53]} Rf6 {[%emt 0:00:50]} 24. Bxc7 {[%emt 0:00:56]} e5 {[%emt 0:00:14]} 25. Ba5 {[%emt 0:02:06]} Rxc6 {[%emt 0:00:12]} 26. Bc3 {[%emt 0:00:01]} exd4 {[%emt 0:00:13]} 27. exd4 {[%emt 0:00:01]} Bxd4 {[%emt 0:00:57]} 28. Qd2 {[%emt 0:01:09]} Bxc3 {[%emt 0:00:58]} 29. Rxh6+ {[%emt 0:00:03]} Kg8 {[%emt 0:01:17]} 30. bxc3 {[%emt 0:00:24]} Rxh6 {[%emt 0:00:33]} 31. Qxh6 {[%emt 0:00:04]} Qe6 {[%emt 0:00:13]} 32. Qg5+ {[%emt 0:00:11]} Kf7 33. Rh7+ Ke8 34. Qg7 1-0

[Event "African Games-chT 2019"]
[Site "Casablanca"]
[Date "2019.08.25"]
[Round "7.24"]
[White "Ofowino, Toritsemuwa"]
[Black "Mongeli, Sasha"]
[Result "1-0"]
[ECO "A45"]
[WhiteElo "1877"]
[BlackElo "1527"]
[Annotator "NA"]
[PlyCount "105"]
[EventDate "2019.08.24"]
[EventType "team-tourn"]
[EventCountry "MAR"]
[SourceTitle "playchess.com"]
[Source "ChessBase"]
[SourceQuality "1"]
[WhiteTeam "Nigeria"]
[BlackTeam "Kenya"]
[WhiteTeamCountry "NGR"]
[BlackTeamCountry "KEN"]
[TimeControl "900+10"]

1. d4 {[%emt 0:00:00]} Nf6 {[%emt 0:00:00]} 2. Bf4 {[%emt 0:00:00]} d5 {[%emt 0:00:00]} 3. e3 {[%emt 0:00:00]} Bf5 {[%emt 0:00:04]} 4. c4 {[%emt 0:00:04]} c6 {[%emt 0:00:12]} 5. Nc3 {[%emt 0:00:03]} e6 {[%emt 0:00:10]} 6. Qb3 {[%emt 0:00:02]} Qb6 {[%emt 0:00:44]} 7. c5 {[%emt 0:00:09]} Qxb3 {[%emt 0:00:19]} 8. axb3 {[%emt 0:00:01]} Nbd7 {[%emt 0:00:25]} 9. b4 {[%emt 0:00:02]} Be7 {[%emt 0:00:32]} 10. b5 {[%emt 0:00:13]} Ne4 {[%emt 0:00:38]} 11. bxc6 {[%emt 0:00:49]} bxc6 {[%emt 0:00:05]} 12. Ba6 {[%emt 0:00:06]} e5 {[%emt 0:01:48]} 13. Bg3 {[%emt 0:02:03]} Nxg3 {[%emt 0:01:51]} 14. hxg3 {[%emt 0:00:02]} Rb8 {[%emt 0:00:02]} 15. Ra2 {[%emt 0:00:28]} exd4 {[%emt 0:00:28]} 16. exd4 {[%emt 0:00:02]} Bf6 {[%emt 0:00:47]} 17. Nge2 {[%emt 0:00:01]} h6 {[%emt 0:00:31]} 18. O-O {[%emt 0:00:02]} O-O {[%emt 0:00:05]} 19. Rd1 {[%emt 0:01:30]} Rfe8 {[%emt 0:00:37]} 20. Bd3 {[%emt 0:00:48]} Bxd3 {[%emt 0:00:46]} 21. Rxd3 {[%emt 0:00:00]} Rb7 {[%emt 0:00:03]} 22. Kf1 {[%emt 0:00:43]} Nf8 {[%emt 0:00:40]} 23. Nd1 {[%emt 0:00:23]} Ne6 {[%emt 0:00:20]} 24. Ra6 {[%emt 0:02:04]} Rc8 {[%emt 0:00:21]} 25. Ke1 {[%emt 0:00:05]} Kf8 {[%emt 0:00:36]} 26. Kd2 {[%emt 0:00:01]} Ke7 {[%emt 0:00:06]} 27. Kc3 {[%emt 0:00:01]} Kd7 {[%emt 0:00:06]} 28. Ne3 {[%emt 0:00:22]} Nc7 {[%emt 0:00:08]} 29. Ra2 {[%emt 0:00:53]} g6 {[%emt 0:00:32]} 30. Ng4 {[%emt 0:00:05]} Bg7 {[%emt 0:00:06]} 31. f4 {[%emt 0:00:03]} f6 {[%emt 0:01:00]} 32. Kc2 {[%emt 0:00:55]} h5 {[%emt 0:00:39]} 33. Ne3 {[%emt 0:00:01]} Re8 {[%emt 0:00:29]} 34. Kd2 {[%emt 0:00:16]} Reb8 {[%emt 0:00:15]} 35. Nd1 {[%emt 0:00:03]} Nb5 {[%emt 0:00:29]} 36. Rb3 {[%emt 0:00:08]} f5 {[%emt 0:00:21]} 37. Kd3 {[%emt 0:00:01]} Re8 {[%emt 0:00:25]} 38. Ndc3 {[%emt 0:00:05]} Reb8 {[%emt 0:00:11]} 39. Nxb5 {[%emt 0:00:06]} cxb5 {[%emt 0:00:24]} 40. Ra6 {[%emt 0:00:02]} Ke7 {[%emt 0:02:06]} 41. Rba3 {[%emt 0:00:25]} Kf7 {[%emt 0:00:27]} 42. b4 {[%emt 0:00:22]} Bf6 {[%emt 0:00:26]} 43. Rxa7 {[%emt 0:00:05]} Rxa7 {[%emt 0:00:15]} 44. Rxa7+ {[%emt 0:00:01]} Kg8 {[%emt 0:00:27]} 45. Nc3 {[%emt 0:00:06]} Bg7 {[%emt 0:00:26]} 46. Nxd5 {[%emt 0:00:13]} Rd8 {[%emt 0:00:15]} 47. Ne7+ {[%emt 0:00:01]} Kh8 {[%emt 0:00:02]} 48. d5 {[%emt 0:00:03]} Kh7 {[%emt 0:00:17]} 49. d6 {[%emt 0:00:03]} Kh6 {[%emt 0:00:24]} 50. Rb7 {[%emt 0:00:15]} Bf6 {[%emt 0:00:15]} 51. Nd5 {[%emt 0:00:04]} Bb2 {[%emt 0:00:27]} 52. Rxb5 {[%emt 0:00:03]} Rd7 {[%emt 0:00:22]} 53. Rb8 {[%emt 0:00:12]} 1-0

[Event "African Games-chT 2019"]
[Site "Casablanca"]
[Date "2019.08.25"]
[Round "7.25"]
[White "Beukes, Dante M"]
[Black "Marie, Patrick"]
[Result "1-0"]
[ECO "B31"]
[WhiteElo "2130"]
[BlackElo "1921"]
[Annotator "NA"]
[PlyCount "45"]
[EventDate "2019.08.24"]
[EventType "team-tourn"]
[EventCountry "MAR"]
[SourceTitle "playchess.com"]
[Source "ChessBase"]
[SourceQuality "1"]
[WhiteTeam "Namibia"]
[BlackTeam "Mauritius"]
[WhiteTeamCountry "NAM"]
[BlackTeamCountry "MRI"]
[TimeControl "900+10"]

1. e4 {[%emt 0:00:00]} c5 {[%emt 0:00:00]} 2. Nf3 {[%emt 0:00:02]} Nc6 {[%emt 0:00:00]} 3. Bb5 {[%emt 0:00:03]} g6 {[%emt 0:00:26]} 4. Bxc6 {[%emt 0:00:03]} bxc6 {[%emt 0:00:02]} 5. O-O {[%emt 0:00:05]} Bg7 {[%emt 0:00:01]} 6. Re1 {[%emt 0:00:02]} d6 {[%emt 0:00:06]} 7. h3 {[%emt 0:00:58]} e6 {[%emt 0:00:38]} 8. c3 {[%emt 0:00:04]} Ne7 {[%emt 0:00:02]} 9. d4 {[%emt 0:00:05]} cxd4 {[%emt 0:00:03]} 10. cxd4 {[%emt 0:00:01]} O-O {[%emt 0:00:03]} 11. Nc3 {[%emt 0:00:08]} Rb8 {[%emt 0:00:04]} 12. Rb1 {[%emt 0:00:31]} c5 {[%emt 0:00:40]} 13. Be3 {[%emt 0:00:13]} cxd4 {[%emt 0:01:41]} 14. Bxd4 {[%emt 0:00:27]} Nc6 {[%emt 0:00:19]} 15. Bxg7 {[%emt 0:00:04]} Kxg7 {[%emt 0:00:02]} 16. Qd2 {[%emt 0:00:16]} Qc7 {[%emt 0:00:29]} 17. Rbc1 {[%emt 0:02:25]} Qb6 {[%emt 0:01:20]} 18. Na4 {[%emt 0:02:01]} Qb4 {[%emt 0:01:38]} 19. Rxc6 {[%emt 0:00:29]} Qxa4 {[%emt 0:00:02]} 20. Qxd6 {[%emt 0:01:46]} Qxa2 {[%emt 0:01:51]} 21. Qxb8 {[%emt 0:00:20]} Bd7 {[%emt 0:00:24]} 22. Qe5+ {[%emt 0:00:05]} f6 {[%emt 0:00:05]} 23. Qc7 {[%emt 0:00:04]} 1-0